bitfinex/quotes_SOLUSD_20241007
["timestamp","ask_amount","ask_price","bid_price","bid_amount"]
[1728273107901,6.6605,150.14,150.1,16.6545]
[1728273108701,21.9607,150.15,150.11,1.33226478]
[1728273108899,21.9607,150.15,150.1,23.3166]
[1728273108900,0.64513875,150.14,150.1,23.3166]
[1728273109810,21.9607,150.15,150.1,23.3166]
[1728273110899,7.30563875,150.14,150.1,16.6545]
[1728273111800,0.64513875,150.14,150.05,20.0]
[1728273112107,6.6622,150.1,150.05,6.6643]
[1728273113207,6.6622,150.1,150.06,6.6639]
[1728273113385,6.6617,150.11,150.06,6.6639]
[1728273113798,6.1882,150.12,150.08,16.6576]
[1728273113979,15.3007,150.15,150.11,6.6614]
[1728273114182,21.9608,150.15,150.1,23.3168]
[1728273114787,21.9608,150.15,150.11,6.6617]
[1728273118906,21.9608,150.15,150.1,23.3168]
[1728273120010,28.90530247,150.15,150.1,23.3168]
[1728273120456,22.24520247,150.15,150.1,16.6547]
[1728273120643,6.6613,150.12,150.08,6.6628]
[1728273121294,6.6609,150.13,150.08,7.99523702]
[1728273121493,6.78599,150.14,150.09,6.6625]
[1728273121806,6.6605,150.14,150.09,6.6625]
[1728273121984,0.64513875,150.13,150.09,6.6625]
[1728273122386,6.6605,150.14,150.09,6.6625]
[1728273123400,28.90520247,150.15,150.1,7.99433188]
[1728273123710,28.90520247,150.15,150.11,6.6617]
[1728273124508,28.90520247,150.15,150.1,7.99443188]
[1728273124709,28.90520247,150.15,150.1,6.6621]
[1728273126695,0.64513875,150.14,150.09,16.656]
[1728273126895,6.6609,150.13,150.09,23.3186]
[1728273128216,22.24520247,150.15,150.09,23.3186]
[1728273128420,6.6605,150.14,150.09,23.3186]
[1728273129119,0.64513875,150.13,150.09,23.3186]
[1728273129813,6.6605,150.14,150.09,23.3186]
[1728273130712,0.64513875,150.13,150.09,23.3186]
[1728273130913,20.25098,150.14,150.06,16.6595]
[1728273131218,12.9594,150.11,150.06,23.3234]
[1728273132017,6.6622,150.1,150.05,6.6643]
[1728273132314,21.9563,150.1,150.05,6.6643]
[1728273136522,15.2941,150.1,150.06,1.33275091]
[1728273136714,15.93923875,150.1,150.06,6.6639]
[1728273136915,22.60153875,150.1,150.06,6.6639]
[1728273137521,21.9564,150.1,150.06,6.6639]
[1728273138634,7.30773875,150.09,150.04,16.6614]
[1728273138826,6.6272,150.05,150.01,16.6653]
[1728273139028,15.93923875,150.04,150.0,6.6665]
[1728273139320,15.93923875,150.04,149.99,6.6667]
[1728273139495,15.2941,150.04,149.98,16.6686]
[1728273140118,15.2941,150.04,150.0,6.6662]
[1728273140740,15.2941,150.04,150.01,1.33314104]
[1728273141221,6.6272,150.05,150.04,6.6648]
[1728273143628,22.49530479,150.08,150.04,6.6648]
[1728273146031,22.49530479,150.08,150.05,6.6643]
[1728273146329,6.4892,150.09,150.07,6.6635]
[1728273146518,6.4892,150.09,150.06,6.6639]
[1728273148631,6.4892,150.09,150.07,6.6634]
[1728273150239,29.8421169,150.12,150.07,6.6634]
[1728273150417,0.64513875,150.11,150.07,6.6634]
[1728273151712,7.30703875,150.11,150.06,6.6639]
[1728273156141,6.6619,150.11,150.06,6.6639]
[1728273156819,0.64513875,150.1,150.06,6.6639]
[1728273159839,29.8422169,150.12,150.07,6.6635]
[1728273160647,0.64513875,150.11,150.07,6.6635]
[1728273160947,29.8422169,150.12,150.07,6.6635]
[1728273162719,0.64513875,150.11,150.07,6.6635]
[1728273163343,29.8422169,150.12,150.07,6.6635]
[1728273165570,0.64513875,150.11,150.07,6.6635]
[1728273166420,29.8422169,150.12,150.07,6.6635]
[1728273167633,0.64513875,150.11,150.07,6.6635]
[1728273170627,23.1808169,150.12,150.08,23.32]
[1728273170832,29.8421169,150.12,150.08,23.32]
[1728273171145,12.9715,150.13,150.08,23.32]
[1728273174335,0.64513875,150.12,150.04,15.5857]
[1728273174530,6.6621,150.11,150.06,6.6639]
[1728273176243,0.64513875,150.1,150.06,6.6639]
[1728273179664,6.6621,150.11,150.06,6.6639]
[1728273180005,7.30733875,150.1,150.05,23.3248]
[1728273181080,6.6622,150.1,150.06,6.6639]
[1728273181381,0.25098,150.12,150.05,17.99327936]
[1728273181702,6.91238,150.12,150.07,6.6631]
[1728273183178,6.6619,150.11,150.07,6.6631]
[1728273183406,0.64513875,150.1,150.05,16.6606]
[1728273184625,0.25098,150.1,150.05,16.6606]
[1728273184792,6.6629,150.09,150.05,16.6606]
[1728273184991,0.64513875,150.08,150.05,16.6606]
[1728273187731,6.6629,150.09,150.05,16.6606]
[1728273189724,13.25472136,150.13,150.05,16.6606]
[1728273189946,0.64513875,150.12,150.05,16.6606]
[1728273190224,6.6622,150.1,150.06,6.6639]
[1728273190405,0.64513875,150.09,150.05,23.3249]
[1728273190607,6.6627,150.09,150.05,16.6606]
[1728273190809,0.64513875,150.08,150.05,16.6606]
[1728273191636,6.6627,150.09,150.05,16.6606]
[1728273191955,6.6627,150.09,150.05,23.325]
[1728273192143,6.6623,150.1,150.05,23.325]
[1728273192842,13.60688636,150.11,150.06,6.6639]
[1728273194214,6.94508636,150.11,150.02,1.3327524]
[1728273194412,6.94508636,150.11,150.07,16.6578]
[1728273194815,6.6613,150.12,150.07,23.3213]
[1728273195127,6.6623,150.1,150.06,6.6639]
[1728273195535,6.6618,150.11,150.06,6.6639]
[1728273196150,0.64513875,150.1,150.06,6.6639]
[1728273196517,7.30743875,150.1,150.06,6.6639]
[1728273196939,0.64513875,150.1,150.05,6.6643]
[1728273197141,6.6627,150.09,150.05,6.6643]
[1728273197352,0.64513875,150.08,150.05,6.6643]
[1728273197641,0.64513875,150.08,150.04,23.3265]
[1728273198036,6.6627,150.09,150.04,23.3265]
[1728273203125,6.6627,150.09,150.05,6.6644]
[1728273203330,6.91318,150.1,150.05,6.6644]
[1728273204631,13.60328975,150.11,150.06,6.6639]
[1728273205125,0.64513875,150.1,150.06,6.6639]
[1728273205778,13.60328975,150.11,150.06,6.6639]
[1728273206356,6.6626,150.09,150.04,23.3265]
[1728273206544,6.6626,150.09,150.05,6.6643]
[1728273207256,0.25098,150.1,150.05,6.6643]
[1728273207559,6.91328,150.1,150.05,6.6643]
[1728273208532,6.78779,150.1,150.05,6.6643]
[1728273210844,6.6623,150.1,150.04,16.6618]
[1728273211042,6.6623,150.1,150.06,6.6639]
[1728273216691,7.30743875,150.1,150.06,6.6639]
[1728273218172,0.64513875,150.1,150.04,16.6618]
[1728273218352,6.6637,150.07,150.02,26.6653]
[1728273219071,0.25098,150.09,150.03,6.6652]
[1728273219072,6.6632,150.08,150.03,6.6652]
[1728273219373,0.64513875,150.07,150.03,6.6652]
[1728273219873,6.6632,150.08,150.03,6.6652]
[1728273220059,6.6632,150.08,150.04,6.6648]
[1728273221855,6.94148975,150.11,150.04,6.6648]
[1728273222040,6.6627,150.09,150.04,6.6648]
[1728273223260,0.64513875,150.08,150.04,6.6648]
[1728273223579,6.6627,150.09,150.04,6.6648]
[1728273227084,0.64513875,150.08,150.04,6.6648]
[1728273227448,6.6627,150.09,150.04,6.6648]
[1728273228573,0.64513875,150.08,150.04,6.6648]
[1728273231880,6.6627,150.09,150.04,6.6648]
[1728273234059,0.64513875,150.08,150.04,6.6648]
[1728273234659,6.6627,150.09,150.04,6.6648]
[1728273238905,0.64513875,150.08,150.04,6.6648]
[1728273242683,6.664,150.06,150.01,6.6661]
[1728273242882,6.664,150.06,150.0,32.7602]
[1728273242883,0.64513875,150.05,150.0,16.6661]
[1728273243106,6.6652,150.04,150.0,16.6661]
[1728273243282,0.64513875,150.03,150.0,16.6661]
[1728273244213,6.6654,150.03,149.98,20.0]
[1728273244429,6.6654,150.03,149.98,21.33337585]
[1728273244813,6.6654,150.03,149.99,6.667]
[1728273245730,6.6649,150.04,149.98,21.33337585]
[1728273246016,6.78989,150.05,150.0,6.6666]
[1728273246214,0.64513875,150.04,150.0,6.6666]
[1728273246417,0.12549,150.05,150.0,6.6666]
[1728273246717,0.12549,150.05,149.98,20.0]
[1728273246918,6.79079,150.04,149.99,6.6669]
[1728273247292,0.12549,150.04,149.98,21.33332555]
[1728273247534,6.79009,150.05,150.0,6.6663]
[1728273248421,22.5592,150.06,150.01,6.6662]
[1728273248602,6.94745272,150.07,150.04,6.6648]
[1728273248795,6.5183,150.08,150.04,6.6648]
[1728273249002,0.64513875,150.07,150.04,6.6648]
[1728273249513,6.5183,150.08,150.04,6.6648]
[1728273254514,13.60856744,150.09,150.04,6.6648]
[1728273255225,13.60816744,150.09,150.05,23.3251]
[1728273255396,13.60816744,150.09,150.05,16.6607]
[1728273255823,6.6631,150.08,150.04,6.6647]
[1728273256700,7.30883875,150.07,150.02,23.3298]
[1728273256903,0.64513875,150.07,150.02,16.6641]
[1728273257106,6.6645,150.05,150.0,6.6664]
[1728273257420,6.5537,150.07,150.0,20.0]
[1728273257720,6.6641,150.06,150.01,6.6662]
[1728273258805,0.64513875,150.05,149.99,16.6675]
[1728273259803,24.67300275,150.06,149.99,16.6675]
[1728273260127,0.12549,150.04,149.96,15.0743]
[1728273260331,6.6653,150.03,149.98,6.6675]
[1728273266603,6.6653,150.03,149.98,8.00081871]
[1728273267103,6.91588,150.04,149.99,6.6669]
[1728273267933,7.31053875,150.03,149.98,6.6675]
[1728273268244,7.31053875,150.03,149.97,16.6692]
[1728273268245,6.666,150.02,149.97,23.3371]
[1728273268526,0.64513875,150.01,149.97,23.3371]
[1728273269259,6.668,149.97,149.92,6.6698]
[1728273269329,0.64513875,149.96,149.92,6.6698]
[1728273269515,0.64513875,149.96,149.91,16.6764]
[1728273269706,0.64513875,149.98,149.95,6.6688]
[1728273270341,6.6676,149.98,149.93,23.3431]
[1728273270531,22.7258,149.99,149.94,6.6692]
[1728273270710,13.53690824,150.0,149.92,20.0]
[1728273270911,13.53690824,150.0,149.96,6.668]
[1728273271114,13.53690824,150.0,149.95,16.6713]
[1728273271316,6.94500824,150.0,149.95,16.6713]
[1728273271527,0.64513875,150.02,149.95,16.6713]
[1728273271833,0.64513875,150.02,149.97,6.6675]
[1728273271834,7.31083875,150.02,149.97,6.6675]
[1728273272913,6.6657,150.02,149.97,6.6675]
[1728273274135,6.6665,150.01,149.95,23.3399]
[1728273274339,6.6665,150.01,149.96,6.6683]
[1728273275137,15.35879,150.03,149.95,16.6713]
[1728273275434,6.6658,150.02,149.98,6.6675]
[1728273276047,15.35879,150.03,149.98,6.6675]
[1728273276243,22.02409,150.03,149.98,6.6675]
[1728273276547,0.64513875,150.02,149.98,6.6675]
[1728273278647,7.31093875,150.02,149.98,6.6675]
[1728273278850,21.8986,150.03,149.98,6.6675]
[1728273279635,21.8986,150.03,149.97,16.6692]
[1728273279842,15.2333,150.03,150.0,6.6662]
[1728273280029,0.64513875,150.03,150.0,6.6662]
[1728273280228,0.64513875,150.03,149.99,16.6671]
[1728273280429,20.00189387,150.04,149.99,16.6671]
[1728273280652,20.00189387,150.04,149.99,23.3341]
[1728273281031,7.31043875,150.03,149.99,23.3341]
[1728273281222,6.6653,150.03,149.99,23.3341]
[1728273282756,0.64513875,150.02,149.99,23.3341]
[1728273283230,6.6653,150.03,149.99,23.3341]
[1728273284249,13.33699387,150.04,149.99,16.6671]
[1728273284558,6.3938,150.04,149.99,23.3338]
[1728273284728,6.3938,150.04,149.95,44.11288058]
[1728273284729,6.3938,150.04,150.0,1.33319196]
[1728273284929,6.94349262,150.05,150.02,16.6642]
[1728273285124,15.4865,150.07,150.02,16.6642]
[1728273285125,20.25098,150.06,150.02,16.6642]
[1728273285342,26.91528,150.06,150.02,16.6642]
[1728273285945,6.6645,150.05,150.01,6.6661]
[1728273286169,7.30963875,150.05,150.01,6.6661]
[1728273287155,7.30963875,150.05,150.0,6.6666]
[1728273287361,6.6653,150.03,149.99,23.3344]
[1728273287549,6.6653,150.03,149.99,16.6674]
[1728273287849,6.6658,150.02,149.98,6.6674]
[1728273288057,6.6653,150.03,149.98,6.6674]
[1728273289048,20.25098,150.06,149.99,6.667]
[1728273289254,6.6649,150.04,149.99,6.667]
[1728273290252,0.64513875,150.03,149.99,6.667]
[1728273293199,6.6649,150.04,149.99,6.667]
[1728273293664,6.6649,150.04,149.99,8.00019763]
[1728273293882,6.6649,150.04,150.0,6.6666]
[1728273294549,26.91538,150.06,150.0,6.6666]
[1728273294948,6.78989,150.06,150.01,1.33314823]
[1728273295251,6.6644,150.06,150.01,6.6658]
[1728273295456,6.6644,150.06,150.02,6.6656]
[1728273296043,6.6644,150.06,150.01,1.33304479]
[1728273296262,6.6644,150.06,150.01,7.99916797]
[1728273298659,6.6644,150.06,150.02,6.6656]
[1728273299074,29.0933028,150.07,150.02,6.6656]
[1728273299860,22.4297028,150.07,150.0,16.6657]
[1728273300098,15.4865,150.07,150.03,6.6652]
[1728273300671,6.1972,150.08,150.04,1.33288494]
[1728273300857,7.30903875,150.07,150.02,6.6656]
[1728273301050,0.64513875,150.07,150.01,20.0]
[1728273301560,0.64513875,150.07,149.98,20.0]
[1728273302170,6.664,150.06,150.01,23.3314]
[1728273302360,6.664,150.06,150.02,20.0]
[1728273302620,0.64513875,150.05,150.0,6.6666]
[1728273303342,7.30953875,150.05,150.0,6.6666]
[1728273305871,6.6644,150.05,150.0,6.6666]
[1728273306091,23.3253,150.06,150.01,6.666]
[1728273306269,16.6612,150.06,150.02,6.6654]
[1728273307603,6.1972,150.08,150.02,16.6637]
[1728273307746,6.1972,150.08,150.04,6.6645]
[1728273308145,6.1972,150.08,150.05,6.6643]
[1728273309149,6.1972,150.08,150.04,16.6612]
[1728273309350,6.1972,150.08,150.04,23.3259]
[1728273312663,22.57878899,150.1,150.05,1.33280064]
[1728273312870,15.6352,150.1,150.06,6.6636]
[1728273314399,0.64513875,150.09,150.04,16.6612]
[1728273314693,7.30813875,150.09,150.04,23.3257]
[1728273316901,0.64513875,150.09,150.04,16.6612]
[1728273317118,7.30813875,150.09,150.03,6.6652]
[1728273317400,6.6632,150.08,150.03,6.6652]
[1728273317564,0.64513875,150.07,150.03,6.6652]
[1728273317765,0.64513875,150.07,150.01,16.6653]
[1728273317966,7.30913875,150.06,150.01,23.3314]
[1728273318183,6.664,150.06,150.01,23.3314]
[1728273318396,12.7518,150.07,150.02,1.33302429]
[1728273318565,6.0882,150.07,150.03,6.6652]
[1728273318766,6.73333875,150.07,150.03,6.6652]
[1728273319002,13.39683875,150.07,150.02,6.6657]
[1728273320973,12.7517,150.07,150.02,6.6657]
[1728273321173,6.0882,150.07,150.03,6.6652]
[1728273322377,6.0882,150.07,150.04,6.6647]
[1728273323195,6.0882,150.07,150.06,6.664]
[1728273323424,22.2974,150.1,150.04,1.33276565]
[1728273323571,22.2974,150.1,150.05,6.6643]
[1728273326597,6.6627,150.09,150.05,6.6643]
[1728273327418,6.6637,150.07,150.03,16.6622]
[1728273327623,6.6632,150.08,150.04,6.6648]
[1728273327899,7.30783875,150.09,150.04,6.6648]
[1728273330807,22.2975,150.1,150.05,7.99693712]
[1728273330987,0.64513875,150.09,150.05,6.6642]
[1728273331703,22.2975,150.1,150.05,6.6642]
[1728273332513,0.64513875,150.09,150.05,6.6642]
[1728273333809,7.58587502,150.09,150.04,6.6648]
[1728273334487,6.6631,150.08,150.03,23.3275]
[1728273334690,0.64513875,150.07,150.03,23.3275]
[1728273335410,6.6631,150.08,150.04,6.6648]
[1728273335611,13.60343627,150.09,150.04,6.6648]
[1728273335993,6.94073627,150.09,150.05,7.99723811]
[1728273336194,14.24857502,150.09,150.04,6.6648]
[1728273336404,13.60343627,150.09,150.04,6.6648]
[1728273338108,0.64513875,150.08,150.03,23.3274]
[1728273338308,6.6635,150.07,150.03,23.3274]
[1728273338489,7.30913875,150.06,150.03,16.6622]
[1728273339133,6.664,150.06,150.02,6.6657]
[1728273339612,6.664,150.06,150.01,26.6662]
[1728273339821,0.64513875,150.05,150.0,16.6663]
[1728273341096,6.6652,150.04,150.0,16.6663]
[1728273341295,0.64513875,150.05,150.0,16.6663]
[1728273341296,0.25098,150.05,150.0,16.6663]
[1728273341695,13.0849,150.06,150.01,6.6661]
[1728273341888,0.64513875,150.05,150.01,6.6661]
[1728273342489,0.64513875,150.05,150.02,6.6657]
[1728273342707,13.0849,150.06,150.02,6.6657]
[1728273343993,6.4205,150.06,150.02,6.6657]
[1728273344202,0.64513875,150.05,150.02,6.6657]
[1728273344394,0.64513875,150.05,150.01,6.6661]
[1728273345418,13.0845,150.06,150.01,6.6661]
[1728273345613,0.64513875,150.05,150.01,6.6661]
[1728273351028,13.0845,150.06,150.01,6.6661]
[1728273351203,0.64513875,150.05,150.01,6.6661]
[1728273355211,13.0845,150.06,150.01,6.6661]
[1728273355724,6.6631,150.08,150.04,6.6647]
[1728273356039,0.64513875,150.07,150.04,6.6647]
[1728273356536,7.30873875,150.07,150.03,23.3282]
[1728273356710,7.30873875,150.07,150.03,16.663]
[1728273356909,0.64513875,150.06,150.03,16.663]
[1728273360945,0.25098,150.09,150.05,6.6644]
[1728273361247,6.6631,150.08,150.04,6.6648]
[1728273361541,0.64513875,150.07,150.04,6.6648]
[1728273362741,6.6631,150.08,150.04,6.6648]
[1728273363088,0.64513875,150.07,150.04,6.6648]
[1728273363341,0.64513875,150.07,150.03,16.663]
[1728273363640,0.64513875,150.07,150.03,23.3282]
[1728273364821,0.64513875,150.07,150.02,6.6657]
[1728273366039,0.64513875,150.07,150.03,6.6652]
[1728273366431,6.6635,150.08,150.04,6.6647]
[1728273366631,6.6627,150.09,150.04,6.6647]
[1728273367245,6.6627,150.09,150.02,16.6636]
[1728273367420,6.6627,150.09,150.05,6.6644]
[1728273370546,6.6627,150.09,150.02,16.6636]
[1728273370843,0.25098,150.09,150.02,16.6636]
[1728273371146,6.664,150.06,150.02,23.3292]
[1728273371343,0.64513875,150.05,150.02,23.3292]
[1728273372948,6.6635,150.08,150.02,16.6636]
[1728273373239,0.64513875,150.07,150.02,16.6636]
[1728273373441,0.64513875,150.07,150.03,6.6652]
[1728273374543,6.664,150.06,150.02,16.6636]
[1728273374741,13.50933875,150.05,150.0,6.6662]
[1728273374929,12.8642,150.05,150.0,6.6662]
[1728273376355,0.64513875,150.04,150.0,6.6662]
[1728273377026,12.8642,150.05,150.0,6.6662]
[1728273379151,6.1997,150.05,150.01,6.6661]
[1728273379344,16.3147,150.06,149.98,10.76898058]
[1728273379701,16.3147,150.06,150.03,6.6651]
[1728273380757,0.64513875,150.05,150.03,6.6651]
[1728273380929,0.64513875,150.05,150.01,23.3308]
[1728273381342,22.9787,150.06,150.01,23.3308]
[1728273381848,0.64513875,150.05,150.01,23.3308]
[1728273382431,22.9787,150.06,150.01,23.3308]
[1728273383942,0.64513875,150.05,150.01,23.3308]
[1728273384169,29.92930372,150.06,150.01,23.3308]
[1728273384369,23.26530372,150.06,150.01,16.6646]
[1728273384552,16.3147,150.06,150.02,6.6656]
[1728273385244,16.95983875,150.06,150.02,6.6656]
[1728273385545,16.95983875,150.06,150.03,6.6653]
[1728273387448,16.95983875,150.06,150.01,16.6646]
[1728273387661,6.6644,150.05,150.01,16.6646]
[1728273387832,0.64513875,150.04,150.01,16.6646]
[1728273388639,7.31003875,150.04,150.0,6.6662]
[1728273389046,7.31003875,150.04,149.99,6.667]
[1728273389757,13.74633875,150.04,149.99,6.667]
[1728273391838,6.6654,150.03,149.98,23.3359]
[1728273392036,0.64513875,150.02,149.98,23.3359]
[1728273393457,6.79169,150.01,149.95,16.6717]
[1728273393655,0.64513875,150.0,149.96,6.6683]
[1728273394538,7.31173875,150.0,149.95,16.6717]
[1728273394732,7.31173875,150.0,149.95,23.3405]
[1728273395543,6.6666,150.0,149.95,23.3405]
[1728273396037,15.77958,150.01,149.95,16.6717]
[1728273396367,15.77958,150.01,149.97,6.6679]
[1728273398045,15.5286,150.01,149.97,6.6679]
[1728273398461,15.5286,150.01,149.95,16.6717]
[1728273398767,0.64513875,150.0,149.97,6.6679]
[1728273399841,15.5286,150.01,149.97,6.6679]
[1728273400042,0.64513875,150.0,149.96,6.6683]
[1728273401214,15.5286,150.01,149.98,6.6675]
[1728273401354,6.95827512,150.03,149.99,6.667]
[1728273401565,13.1011,150.04,149.99,6.667]
[1728273402450,0.64513875,150.03,149.98,16.6687]
[1728273402871,6.6657,150.02,149.98,16.6687]
[1728273403263,0.64513875,150.01,149.98,16.6687]
[1728273403457,0.64513875,150.01,149.98,23.3361]
[1728273403973,6.6654,150.03,149.98,16.6687]
[1728273404158,6.6654,150.03,149.99,6.667]
[1728273405876,6.4363,150.04,149.96,10.76898058]
[1728273406086,6.4363,150.04,150.0,16.6658]
[1728273406258,22.98681336,150.05,150.02,6.6656]
[1728273406458,16.0291,150.05,150.02,6.6656]
[1728273410289,13.62903541,150.07,150.02,6.6656]
[1728273410574,6.39079,150.08,150.04,6.6648]
[1728273410760,6.2653,150.08,150.05,6.6643]
[1728273412259,6.91043875,150.08,150.05,6.6643]
[1728273412902,6.2653,150.08,150.05,6.6643]
[1728273414493,6.91043875,150.08,150.05,6.6643]
[1728273415359,6.2653,150.08,150.05,6.6643]
[1728273417289,6.91043875,150.08,150.05,6.6643]
[1728273417458,6.91043875,150.08,150.04,6.6647]
[1728273417659,6.2653,150.08,150.0,44.10158058]
[1728273417971,6.2653,150.08,150.05,6.664]
[1728273418680,6.96365085,150.1,150.06,6.6636]
[1728273419484,7.6087896,150.1,150.06,6.6636]
[1728273419689,14.2709896,150.1,150.06,6.6636]
[1728273420207,14.2709896,150.1,150.05,6.6643]
[1728273420686,6.6626,150.09,150.05,6.6643]
[1728273420917,0.64513875,150.08,150.05,6.6643]
[1728273421360,0.64513875,150.08,150.04,23.326]
[1728273422267,6.6626,150.09,150.04,23.326]
[1728273429191,6.6626,150.09,150.05,6.6643]
[1728273429402,7.30773875,150.09,150.04,23.3257]
[1728273429691,6.6626,150.09,150.04,23.3257]
[1728273430284,6.96365085,150.1,150.05,6.6643]
[1728273430481,6.96365085,150.1,150.06,6.6639]
[1728273431072,13.62585085,150.1,150.06,6.6639]
[1728273433697,0.64513875,150.09,150.06,6.6639]
[1728273433870,0.64513875,150.09,150.04,16.6612]
[1728273434070,0.64513875,150.09,150.05,6.6643]
[1728273434477,0.64513875,150.09,150.04,16.6612]
[1728273434693,0.64513875,150.09,150.06,6.6639]
[1728273434896,13.62585085,150.1,150.06,6.6639]
[1728273435090,0.64513875,150.09,150.05,6.6643]
[1728273435700,0.64513875,150.09,150.04,16.6612]
[1728273435886,6.96365085,150.1,150.07,6.6635]
[1728273436197,12.9902,150.12,150.07,6.6635]
[1728273436198,6.6618,150.11,150.07,6.6635]
[1728273436372,7.30693875,150.11,150.07,6.6635]
[1728273437176,6.6618,150.11,150.07,6.6635]
[1728273438394,7.30693875,150.11,150.07,6.6635]
[1728273438580,6.6618,150.11,150.07,6.6635]
[1728273439892,7.30693875,150.11,150.07,6.6635]
[1728273441907,7.30693875,150.11,150.06,23.323]
[1728273448308,6.6618,150.11,150.06,23.323]
[1728273450087,6.3286,150.12,150.07,1.33255057]
[1728273450291,12.9899,150.12,150.07,7.99595057]
[1728273450491,12.9899,150.12,150.07,6.6634]
[1728273450901,12.9899,150.12,150.07,7.99594002]
[1728273451906,6.96044264,150.14,150.04,26.66548058]
[1728273452093,13.62094264,150.14,150.09,6.6623]
[1728273452387,13.62094264,150.14,150.09,7.9946671]
[1728273453081,13.62094264,150.14,150.1,6.6622]
[1728273454206,6.96044264,150.14,150.1,6.6622]
[1728273454402,6.78559,150.15,150.1,6.6622]
[1728273456100,13.0051,150.16,150.11,7.99391595]
[1728273456307,13.0051,150.16,150.11,6.6616]
[1728273456680,6.6602,150.15,150.1,23.3168]
[1728273457005,7.30533875,150.15,150.1,23.3168]
[1728273459906,6.6602,150.15,150.1,23.3168]
[1728273460698,7.30533875,150.15,150.1,23.3168]
[1728273461491,6.6602,150.15,150.1,23.3168]
[1728273461701,7.30533875,150.15,150.1,23.3168]
[1728273464709,6.6602,150.15,150.1,23.3168]
[1728273465914,7.30533875,150.15,150.1,23.3168]
[1728273468898,6.6602,150.15,150.1,23.3168]
[1728273469219,7.30533875,150.15,150.1,23.3168]
[1728273469794,6.6609,150.13,150.09,6.6626]
[1728273469997,6.6609,150.13,150.08,20.0]
[1728273470198,6.6609,150.13,150.08,26.663]
[1728273471412,6.6609,150.13,150.08,20.0]
[1728273471616,6.6609,150.13,150.09,6.6625]
[1728273472218,0.25098,150.15,150.09,6.6625]
[1728273472466,6.6605,150.14,150.09,7.99479875]
[1728273473104,6.6605,150.14,150.09,6.6625]
[1728273473406,6.6605,150.14,150.09,7.994805]
[1728273474415,13.0052,150.16,150.1,6.6618]
[1728273474600,6.66,150.15,150.1,6.6618]
[1728273475201,6.3453,150.16,150.09,16.6559]
[1728273475618,6.3453,150.16,150.11,23.3151]
[1728273475820,0.64513875,150.15,150.11,23.3151]
[1728273476400,13.0052,150.16,150.11,23.3151]
[1728273476902,13.65033875,150.16,150.11,23.3151]
[1728273478319,6.6602,150.15,150.11,16.6537]
[1728273478506,7.30563875,150.14,150.1,6.6622]
[1728273480295,0.64513875,150.14,150.1,6.6622]
[1728273480996,7.30593875,150.14,150.09,20.0]
[1728273481322,6.6609,150.13,150.09,20.0]
[1728273481626,6.6609,150.13,150.09,6.6626]
[1728273484403,6.3453,150.16,150.09,6.6626]
[1728273484615,6.6605,150.14,150.09,6.6626]
[1728273484825,0.64513875,150.13,150.09,6.6626]
[1728273486619,6.6605,150.14,150.09,6.6626]
[1728273491474,7.30523875,150.15,150.1,6.6618]
[1728273494023,6.6601,150.15,150.1,6.6618]
[1728273494229,7.30523875,150.15,150.1,6.6618]
[1728273495230,0.64513875,150.15,150.08,16.6575]
[1728273495442,0.25098,150.15,150.09,6.6625]
[1728273495608,6.6606,150.14,150.09,6.6625]
[1728273496125,0.64513875,150.13,150.09,6.6625]
[1728273497303,7.30573875,150.14,150.09,6.6625]
[1728273498222,6.6606,150.14,150.09,6.6625]
[1728273500819,13.0052,150.16,150.1,6.6618]
[1728273501023,6.6601,150.15,150.1,6.6618]
[1728273502538,13.0049,150.16,150.11,6.6616]
[1728273503116,13.65003875,150.16,150.11,6.6616]
[1728273504835,0.64513875,150.15,150.11,6.6616]
[1728273505533,13.0049,150.16,150.11,6.6616]
[1728273507433,0.64513875,150.15,150.11,6.6616]